Cogmind - Beta 16 @@@ ROGUE MODE // 2025.11.14 @ 10:46:57 Player: lvl5hm Result: Destroyed by as-65568 with Assembled Blade Performance ------------- Evolutions (0) 0 Regions Visited (4) 800 Robots Destroyed (0) 0 Value Destroyed (0) 0 Prototype IDs (0) 0 Alien Tech Used (0) 0 Bonus (0) 0 TOTAL SCORE: 800 Bonus ------- None Cogmind --------- Core Integrity 0/250 Matter 278/300 Energy 150/150 System Corruption 5% Temperature Cool (0) Movement Core (100) Ox1 Location -9/Mines Parts ------- > --- POWER (1) -------- Micro Nuclear Core > --- PROPULSION (2) --- (None) > --- UTILITY (2) ------ (None) > --- WEAPON (2) ------- (None) > --- INVENTORY (5) ---- Light Ion Engine Flying Fortress v7 Peak State ------------ > --- POWER ------------ Micro Nuclear Core > --- PROPULSION ------- Xenon Bombardment Thruster > --- UTILITY ---------- (None) > --- WEAPON ----------- (None) > --- INVENTORY -------- Light Ion Engine Flying Fortress v7 [Rating: 11] Favorites ----------- Power Micro Nuclear Core Power Core Micro Nuclear Core Propulsion Flight Unit Flight Unit Flight Unit Utility None Weapon None Build | -11 -10 -10 -10 -9 ------- Run | Yrd Mat Min Exi Min Slots Evolved . | . . . . . Power . | . . . . . Propulsion . | . . . . . Utility . | . . . . . Weapon . | . . . . . Parts Attached 6 | . 2 2 . 2 Power 1 | . . . . 1 Engine . | . . . . . Core 1 | . . . . 1 Reactor . | . . . . . Propulsion 5 | . 2 2 . 1 Treads . | . . . . . Leg . | . . . . . Wheel . | . . . . . Hover . | . . . . . Flight 5 | . 2 2 . 1 Utility . | . . . . . Device . | . . . . . Storage . | . . . . . Processor . | . . . . . Hackware . | . . . . . Protection . | . . . . . Artifact . | . . . . . Weapon . | . . . . . Energy Gun . | . . . . . Energy Cannon . | . . . . . Ballistic Gun . | . . . . . Ballistic Cannon . | . . . . . Launcher . | . . . . . Special Weapon . | . . . . . Impact Weapon . | . . . . . Slashing Weapon . | . . . . . Piercing Weapon . | . . . . . Special Melee Weapon . | . . . . . Unidentified Prototypes . | . . . . . Corrupted Parts 1 | . . . . 1 System Corruption 5 | . . . . 5 Parts Lost 2 | . . 1 . 1 Power . | . . . . . Propulsion 2 | . . 1 . 1 Utility . | . . . . . Weapon . | . . . . . Highest Loss Streak 1 | . . 1 . 1 To Critical Strikes . | . . . . . Average Backups 2 | . 2 5 3 2 Power 1 | . 1 1 1 1 Propulsion 1 | . 1 3 1 1 Utility . | . . . . . Weapon . | . . . . . Tool/Special . | . . . . . Unused Backups 6 | . 1 . 3 2 Power 2 | . 1 . . 1 Propulsion 3 | . . . 2 1 Utility . | . . . . . Weapon 1 | . . . 1 . Tool/Special . | . . . . . Average Slot Usage (%) 11 | . 7 25 12 6 Core 1 | . . . . 3 Flight 9 | . 7 25 12 2 Peak Build Rating 11 | . 2 2 3 11 Average Rating 2 | . . 1 2 5 On Entrance 1 | . . 2 2 3 Avg Prop Armor Cover (%) . | . . . . . Naked Turns 209 | . 53 . 53 103 Heaviest Build 6 | . . . . 6 Greatest Support 8 | 3 8 8 8 6 Greatest Overweight (x) 1 | . . . . 1 Average Overweight (x) . | . . . . . Largest Inventory Capacity 5 | 5 5 5 5 5 Average Capacity 5 | 5 5 5 5 5 Most Carried 5 | 1 5 5 5 5 Average Carried 4 | . 2 4 4 5 Final Capacity 5 | 5 5 5 5 5 Final Carried 5 | 1 5 4 5 5 Class Distribution -------------------- 100% | Mutant Dominant Class ---------------- Mutant | -10/Materials Mutant | -10/Mines Mutant | -10/Exiles Mutant | -9/Mines Resources | -11 -10 -10 -10 -9 ----------- Run | Yrd Mat Min Exi Min Matter Collected 230 | 198 . 20 . 12 Remotely . | . . . . . Salvage Created . | . . . . . Parts . | . . . . . Haulers Intercepted . | . . . . . Recyclers Shooed . | . . . . . Parts Field Recycled . | . . . . . Retrieved Matter . | . . . . . Parts Self-Destructed . | . . . . . Prevented . | . . . . . Parts Restored . | . . . . . Kills | -11 -10 -10 -10 -9 ------- Run | Yrd Mat Min Exi Min Combat Hostiles Destroyed . | . . . . . Classes Destroyed . | . . . . . Best Kill Streak . | . . . . . Combat Bots Only . | . . . . . Max Kills in Single Turn . | . . . . . Gunslinging . | . . . . . Exploded . | . . . . . Melee . | . . . . . Uniques/NPCs Destroyed . | . . . . . Combat | -11 -10 -10 -10 -9 -------- Run | Yrd Mat Min Exi Min Hostile Shots Fired 40 | . . 16 . 24 Missed 18 | . . 8 . 10 Hits 22 | . . 8 . 14 Melee 2 | . . . . 2 Projectile 20 | . . 8 . 12 Critical Strikes 2 | . . . . 2 Damage Taken 377 | 2 . 125 . 250 Core 268 | 2 . 92 . 174 Absorbed by Shields . | . . . . . Core Remaining (%) 99 | 99 . . . . Volleys Fired . | . . . . . Largest . | . . . . . Hottest . | . . . . . Shots Fired . | . . . . . Gun . | . . . . . Cannon . | . . . . . Launcher . | . . . . . Special . | . . . . . Kinetic . | . . . . . Thermal . | . . . . . Explosive . | . . . . . Electromagnetic . | . . . . . Robot Hit Streak . | . . . . . Robot Miss Streak . | . . . . . Penetration Max . | . . . . . Secondary Targets . | . . . . . Shots Hit Robots . | . . . . . Core Hits . | . . . . . Critical Kills . | . . . . . Critical Parts Destroyed . | . . . . . Critical Strikes . | . . . . . Melee Attacks . | . . . . . Impact . | . . . . . Slashing . | . . . . . Piercing . | . . . . . Sneak Attacks . | . . . . . Combat Hostiles . | . . . . . Follow-up Attacks . | . . . . . Damage Inflicted 16 | 5 . 11 . . Guns . | . . . . . Cannons . | . . . . . Explosions . | . . . . . Melee . | . . . . . Ramming 16 | 5 . 11 . . Kinetic . | . . . . . Thermal . | . . . . . Explosive . | . . . . . Electromagnetic . | . . . . . Impact . | . . . . . Slashing . | . . . . . Piercing . | . . . . . Highest Corruption 5 | . . . . 5 Average Corruption 5 | . . . . 5 Corruption Purged . | . . . . . Corruption Blocked . | . . . . . Effects 1 | . . . . 1 Matter Fused 1 | . . . . 1 Overload Shots . | . . . . . Overflow Damage . | . . . . . Projectiles . | . . . . . Explosions . | . . . . . Melee . | . . . . . Knockbacks . | . . . . . Impact . | . . . . . Kinetic . | . . . . . Secondary . | . . . . . Self-Inflicted Damage 7 | 2 . 5 . . Shots . | . . . . . Rammed 2 | 1 . 1 . . Targets Rammed 2 | 1 . 1 . . Kicked . | . . . . . Crushed . | . . . . . Highest Temperature . | . . . . . Average Temperature . | . . . . . Received Heat Transfer 24 | . . 24 . . Siege Activations . | . . . . . Martial Activations . | . . . . . Shielding Activations . | . . . . . Robots Disrupted . | . . . . . Combat Hostiles . | . . . . . Robots Corrupted . | . . . . . Combat Hostiles . | . . . . . Parts Fried . | . . . . . Impact Corruptions . | . . . . . Robots Melted . | . . . . . Combat Hostiles . | . . . . . Parts Melted . | . . . . . Heat Transferred . | . . . . . Parts Sabotaged . | . . . . . Parts Stolen . | . . . . . Parts Stripped . | . . . . . Power Chain Reactions . | . . . . . Alert | -11 -10 -10 -10 -9 ------- Run | Yrd Mat Min Exi Min Maximum Alert Level . | . . . . . Low Security (%) 100 | 100 100 100 . 100 Level 1 . | . . . . . Level 2 . | . . . . . Level 3 . | . . . . . Level 4 . | . . . . . Level 5 . | . . . . . High Security . | . . . . . Max Security . | . . . . . Peak Influence 35 | . . 35 . . Initial . | . . . . . Average 3 | . . 18 . . Influence Increases 45 | . . 45 . . Lose Combat Pursuer 45 | . . 45 . . Influence Decreases 45 | . . 30 15 . Entered New Map 15 | . . . 15 . Time Decay 20 | . . 20 . . Lost Part 10 | . . 10 . . Squads Dispatched . | . . . . . Investigation . | . . . . . Extermination . | . . . . . Reinforcement . | . . . . . Assault . | . . . . . Garrison . | . . . . . Intercept . | . . . . . Searches Triggered . | . . . . . Construction Impeded . | . . . . . Haulers Reinforced . | . . . . . Active Scanning Responses . | . . . . . Cargo Convoy Interrupts . | . . . . . Stealth | -11 -10 -10 -10 -9 --------- Run | Yrd Mat Min Exi Min Distress Signals . | . . . . . Communications Jammed . | . . . . . Distress Signals . | . . . . . Times Spotted 20 | . 3 8 . 9 Peak Tracking Total 10 | . 3 5 . 10 Tactical Retreats 1 | . . 1 . . Traps | -11 -10 -10 -10 -9 ------- Run | Yrd Mat Min Exi Min Traps Triggered 1 | . . . . 1 Indirectly . | . . . . . Trap Hack Attempts . | . . . . . Triggered . | . . . . . Disarmed . | . . . . . Reprogrammed . | . . . . . Reused . | . . . . . Traps Extracted . | . . . . . Installed . | . . . . . Triggered . | . . . . . Machines | -11 -10 -10 -10 -9 ---------- Run | Yrd Mat Min Exi Min Machines Disabled . | . . . . . Max in Single Turn . | . . . . . Machines Repaired . | . . . . . Machines Dismantled . | . . . . . Machines Sabotaged . | . . . . . Overloaded Fab Kills . | . . . . . Hacking | -11 -10 -10 -10 -9 --------- Run | Yrd Mat Min Exi Min Machines Accessed 1 | . . . . 1 Terminals . | . . . . . Fabricators . | . . . . . Repair Stations . | . . . . . Recycling Units . | . . . . . Scanalyzers . | . . . . . Garrison Access . | . . . . . Total Hacks 1 | . . . . 1 Successful 1 | . . . . 1 Failed . | . . . . . Catastrophic . | . . . . . Database Lockouts . | . . . . . Manual 1 | . . . 1 . Terminals . | . . . . . Fabricators . | . . . . . Repair Stations . | . . . . . Recycling Units . | . . . . . Scanalyzers . | . . . . . Garrison Access . | . . . . . Terminal Hacks 1 | . . . . 1 Open Door 1 | . . . . 1 Fabricator Hacks . | . . . . . Repair Station Hacks . | . . . . . Recycling Unit Hacks . | . . . . . Scanalyzer . | . . . . . Garrison Access Hacks . | . . . . . Unauthorized Hacks . | . . . . . Terminals . | . . . . . Fabricators . | . . . . . Repair Stations . | . . . . . Recycling Units . | . . . . . Scanalyzers . | . . . . . Garrison Access . | . . . . . Data Cores Recovered . | . . . . . Used . | . . . . . Hacking Detections . | . . . . . Full Trace Events . | . . . . . Feedback Events . | . . . . . Feedback Blocked . | . . . . . Robot Schematics Acquired . | . . . . . Robots Built . | . . . . . Authchips . | . . . . . Time . | . . . . . Total Robot Build Rating . | . . . . . Part Schematics Acquired . | . . . . . Parts Built . | . . . . . Authchips . | . . . . . Time . | . . . . . Total Part Build Rating . | . . . . . Part Studies Acquired . | . . . . . Parts Repaired . | . . . . . Time . | . . . . . Parts Recycled . | . . . . . Recycled Matter . | . . . . . Retrieved Matter . | . . . . . Retrieved Components . | . . . . . Parts Scanalyzed . | . . . . . Part Schematics Acquired . | . . . . . Parts Damaged . | . . . . . Bothacking | -11 -10 -10 -10 -9 ------------ Run | Yrd Mat Min Exi Min Used RIF Installer . | . . . . . Robots Hacked . | . . . . . Non-combat . | . . . . . Combat . | . . . . . Robot Hacks Applied . | . . . . . Relay Couplers Released . | . . . . . Fabnet Peak Effective % . | . . . . . Robots Rewired . | . . . . . Allies Hacked . | . . . . . Hacks Repelled . | . . . . . Allies | -11 -10 -10 -10 -9 -------- Run | Yrd Mat Min Exi Min Total Allies . | . . . . . Largest Group . | . . . . . Highest-Rated Group . | . . . . . Highest-Rated Ally . | . . . . . Total Orders . | . . . . . Ally Attacks . | . . . . . Total Damage . | . . . . . Kills . | . . . . . Allies Corrupted . | . . . . . Allies Melted . | . . . . . Intel | -11 -10 -10 -10 -9 ------- Run | Yrd Mat Min Exi Min Active Infowar (turns) . | . . . . . Robot Analysis Total . | . . . . . Derelict Logs Recovered 2 | . . 2 . . Drone Launches . | . . . . . Drone Recoveries . | . . . . . Exploration | -11 -10 -10 -10 -9 ------------- Run | Yrd Mat Min Exi Min Turns Passed 387 | 13 75 59 92 148 Spaces Moved 802 | 22 143 141 203 293 Core 443 | 22 103 5 101 212 Treads . | . . . . . Legs . | . . . . . Wheels . | . . . . . Hover . | . . . . . Flight 359 | . 40 136 102 81 Fastest Speed 37 | 50 37 37 37 40 Average Speed 45 | 50 46 38 43 48 Slowest Speed 100 | 50 50 50 50 100 Overloaded Moves . | . . . . . Propulsion Burnouts . | . . . . . Robots Hopped 7 | . . 4 . 3 Potential Cave-ins . | . . . . . Cave-ins Triggered . | . . . . . Exploration Rate (%) 40 | 3 30 37 60 72 Regions Visited 4 Branch Regions 3 Pre-discovered Areas 1 | . . 1 . . Known Exits Taken . | . . . . . Unknown Exits Taken 4 | 1 1 1 1 . Scrap Searched 2 | . . 1 . 1 Spaces Dug . | . . . . . Terrain Destroyed . | . . . . . Melee . | . . . . . Projectile . | . . . . . AOE . | . . . . . Terrain Rammed . | . . . . . Walls Destroyed . | . . . . . Machines Disabled . | . . . . . Actions | -11 -10 -10 -10 -9 --------- Run | Yrd Mat Min Exi Min Total 816 | 23 150 141 209 293 Wait 1 | . . . . 1 Move 784 | 21 142 132 202 287 Hop 7 | . . 4 . 3 Pick Up 8 | 1 5 1 1 . Fast Attach 4 | . 2 . . 2 Attach 1 | . . 1 . . Detach 1 | . . . 1 . Swap 1 | . . 1 . . Drop 7 | . 1 1 5 . Fire . | . . . . . Melee . | . . . . . Ram 2 | 1 . 1 . . Kick . | . . . . . Crush . | . . . . . Escape Stasis . | . . . . . Rewire . | . . . . . Trap . | . . . . . Miscellaneous . | . . . . . Route ------- -11/Scrapyard -10/Materials -10/Mines -10/Exiles -9/Mines History --------- Turn | Location | Event 6 | -11/Scrapyard | Discovered new exit (range 15) 14 | -11/Scrapyard | Entered Materials 86 | -10/Materials | Discovered new exit (range 7) 89 | -10/Materials | Entered Mines 92 | -10/Mines | Learned Materials security intel 107 | -10/Mines | Learned location of Storage (-8) 126 | -10/Mines | YI-UF0 nonchalantly dropped a Grenade Launcher on the ground 145 | -10/Mines | Deemed a non-threat by the Exiles lab entrance 145 | -10/Mines | Discovered new exit (range 5) 148 | -10/Mines | Entered Exiles 148 | -10/Exiles | Found Exiles lab destroyed 186 | -10/Exiles | Opened EX-Vault 191 | -10/Exiles | Found Prototype Flight Unit 234 | -10/Exiles | Discovered new exit (range 14) 240 | -10/Exiles | Entered Mines 246 | -9/Mines | Assembled infested the area 251 | -9/Mines | Assisted by a Guerilla fighting off Assembled 284 | -9/Mines | Found a hidden stash of uninstalled traps 287 | -9/Mines | Met a Derelict bent on vengeance 305 | -9/Mines | Build established: Mutant 340 | -9/Mines | Met a Derelict who couldn't figure out how to use a Trap Extractor 379 | -9/Mines | Core integrity fell below 50% 383 | -9/Mines | Core integrity fell below 20% 388 | -9/Mines | Destroyed by as-65568 with Assembled Blade Last Messages --------------- 00340_ PN-GVP(g): "I give up! Here you try, I'm outta here before something nasty happens..." 00340_ Tosses Imp. Trap Extractor to the ground. 00340_ PN-GVP(g) triggered Blade Trap. 00340_ Massive razor-sharp blades shoot up from within the floor. 00340_ Carbon-fiber Leg severed. 00340_ Lgt. Angular Momentum Engine severed. 00340_ Carbon-fiber Leg severed. 00343_ Acquired Xenon Bombardment Thruster. 00344_ Triggered EMP Trap. 00344_ A bubble of electromagnetic force engulfs the area. 00344_ Machine disabled. 00344_ Acquired Corrupted Mic. Nuclear Core. 00344_ Integrated Corrupted Mic. Nuclear Core (+5). 00378_ Xenon Bombardment Thruster destroyed. 00381_ Acquired 12 matter. 00388_ System corrupted: Matter fused (-8). Map ----- +----------------------------------------------------+ | ??????????????????????# """ "" | | ??????????????????????# """ "" | | ??????????????????????# """ "" | | ??????????????????????# | | ??????????????????????# """ """ "" | | ??????????????????????# """ """ "" | | ??????????????????????# """ """ "" | | ??????????????????????# | | ??????????????????????# | | ??????????????????????#### ######### | | ?????????? ?????????????# #### ## | | ?????????? ????????###### | | ?????????? ????????# | | ?????????# ????????# #### ## | | ?????????# ?????????????# ## | | ?????????# ?????????????# | | ?????????# ???#?????????#### | | ?????????# #?? ????????????# | | ?????????# #?#"????????????# | | ?????????# #? ????????????## ## | | ?????????# #? ?????????????###### | | ?????????# #?# #?????????????????# | | ?????????# #?#=#????????????????## | | ?????????# #?#[#????????????##### | | ?????????# #?#%#???????????## | | ?????????# @#?#=###???####### | | ????????## a###=%* | | ????????# ##%##???######### | | ????????## | ##??????????## # | | ?????????## [ #####???????## ## | | ??????????# #????????# #? | | ??????????# ### #????????# #? | | ??????????## *##?# #???????# #? | | ???????????#### %#??# #??????# # | | ??????????????# =#??# ###????# # | | ??????????????# #??# #????## ## | | ??????????????# #??### #?????#####? | | ??????????????# #????# #??????????? | | ??????????????# ????# #??????????? | | ??????????????####????# #??????????? | | ??????????????????????# #??????????? | | ??????????????????????# ##########?? | | ??????????????????????# ### | | ??????????????????????####### | | ????????????????????????????# | | ????????????????????????????# | | ????????????????????????????# | | ???????????????????????????# ## | | ???????????????????????????# ### | | ???????????????????????????## #### | +----------------------------------------------------+ Best States ------------- Heat Dissipation 25 Energy Generation 15 Energy Capacity 150 Matter Stores 300 Matter Capacity 300 Sight Range 16 Terrain Scan Density 10 Evasion (%) 62 Item Schematics ----------------- None Robot Schematics ------------------ None Fabricated ------------ Nothing Repaired ---------- Nothing Studied --------- None Alien Tech Used ----------------- None Achievements -------------- Luggage Code Challenges ------------ None Game ------ Seed JunkMetafieldFalx Manual? 0 Play Time 00:07:11 Cumulative 220.0 hours Start 2025.11.14 @ 10:41:31 End 2025.11.14 @ 10:46:57 Sessions 1 Manual Loads 0 Difficulty Rogue Special Mode None Game No. 167 Rogue 167 Adventurer 0 Explorer 0 Win Type - Total 10 Types 6/0/2/1/0/0/0/1/0/0 Lore% 52 Gallery% 69 Achievement% 61 Wizard Run 0 Options --------- Layout 2 ASCII 0 Keyboard 1 Movement Arrows Keybinds 0 Fullscreen 1 Font 32/Tamsyn Map View 50x44 Zoom Use 0% Tactical HUD 1 Map Filters NONE Filters NONE Steam 1 RUN: d636cc00-dc2f-4d86-9ad9-f1158b41117a